fUST/lending_fUST_20251010
["ID","MTS","AMOUNT","RATE_DAILY","PERIOD"]
[390541167,1760079040444,-500.0,0.00016438,2]
[390541169,1760079040454,-500.0,0.00016438,2]
[390541171,1760079040463,-500.0,0.00016438,2]
[390541173,1760079040472,-500.0,0.00016438,2]
[390541174,1760079040482,-500.0,0.00016438,2]
[390541176,1760079040491,-500.0,0.00016438,2]
[390541178,1760079040500,-500.0,0.00016438,2]
[390541180,1760079040510,-500.0,0.00016438,2]
[390541182,1760079040520,-500.0,0.00016438,2]
[390541184,1760079040529,-500.0,0.00016438,2]
[390541185,1760079040538,-500.0,0.00016438,2]
[390541187,1760079040547,-500.0,0.00016438,2]
[390541189,1760079040556,-500.0,0.00016438,2]
[390541191,1760079040565,-500.0,0.00016438,2]
[390541193,1760079040575,-500.0,0.00016438,2]
[390541195,1760079040584,-500.0,0.00016438,2]
[390541197,1760079040594,-500.0,0.00016438,2]
[390541199,1760079040605,-567.68992436,0.00016438,2]
[390541201,1760079040614,-501.06021249,0.00016438,2]
[390541203,1760079040624,-500.0,0.00016438,2]
[390541205,1760079040634,-500.0,0.00016438,2]
[390541207,1760079040643,-500.0,0.00016438,2]
[390541209,1760079040652,-500.52230088,0.00016438,2]
[390541211,1760079040662,-500.0,0.00016438,2]
[390541213,1760079040671,-501.69374582,0.00016438,2]
[390541215,1760079040681,-500.0,0.00016438,2]
[390541216,1760079040691,-500.0,0.00016438,2]
[390541218,1760079040701,-500.0,0.00016438,2]
[390541220,1760079040710,-944.48,0.00016438,2]
[390541222,1760079040719,-500.0,0.00016438,2]
[390541224,1760079040728,-500.0,0.00016438,2]
[390541226,1760079040738,-500.0,0.00016438,2]
[390541228,1760079040747,-500.0,0.00016438,2]
[390541230,1760079040757,-500.0,0.00016438,2]
[390541233,1760079040766,-500.0,0.00016438,2]
[390541234,1760079040775,-500.0,0.00016438,2]
[390541236,1760079040785,-500.0,0.00016438,2]
[390541238,1760079040795,-500.0,0.00016438,2]
[390541241,1760079040804,-500.0,0.00016438,2]
[390541243,1760079040814,-500.18334127,0.00016438,2]
[390541245,1760079040823,-252.52752145,0.00016438,2]
[390541247,1760079040832,-500.0,0.00016438,2]
[390541248,1760079040842,-500.0,0.00016438,2]
[390541250,1760079040852,-500.0,0.00016438,2]
[390541253,1760079040862,-500.0,0.00016438,2]
[390541254,1760079040871,-500.0,0.00016438,2]
[390541256,1760079040880,-500.0,0.00016438,2]
[390541258,1760079040889,-500.0,0.00016438,2]
[390541260,1760079040899,-5096.32,0.00016438,2]
[390541262,1760079040908,-4788.55,0.00016438,2]
[390541264,1760079040917,-3311.19,0.00016438,2]
[390541266,1760079040926,-500.0,0.00016438,2]
[390541268,1760079040935,-500.0,0.00016438,2]
[390541271,1760079040945,-500.0,0.00016438,2]
[390541272,1760079040954,-500.0,0.00016438,2]
[390541274,1760079040963,-500.0,0.00016438,2]
[390541277,1760079040972,-500.0,0.00016438,2]
[390541279,1760079040981,-1535.04,0.00016438,2]
[390541281,1760079040995,-524.20665313,0.00016438,2]
[390541283,1760079041005,-500.0,0.00016438,2]
[390541285,1760079041014,-500.0,0.00016438,2]
[390541287,1760079041023,-500.0,0.00016438,2]
[390541289,1760079041032,-710.02,0.00016438,2]
[390541291,1760079041042,-500.0,0.00016438,2]
[390541293,1760079041052,-1380.94,0.00016438,2]
[390541295,1760079041061,-500.0,0.00016438,2]
[390541297,1760079041073,-500.0,0.00016438,2]
[390541298,1760079041083,-500.0,0.00016438,2]
[390541300,1760079041092,-500.0,0.00016438,2]
[390541303,1760079041103,-500.0,0.00016438,2]
[390541305,1760079041112,-500.0,0.00016438,2]
[390541307,1760079041122,-2141.16,0.00016438,2]
[390541308,1760079041131,-826.88,0.00016438,2]
[390541310,1760079041140,-500.0,0.00016438,2]
[390541312,1760079041149,-500.0,0.00016438,2]
[390541314,1760079041159,-500.0,0.00016438,2]
[390541316,1760079041168,-500.0,0.00016438,2]
[390541319,1760079041177,-500.0,0.00016438,2]
[390541320,1760079041188,-500.0,0.00016438,2]
[390541322,1760079041197,-500.0,0.00016438,2]
[390541324,1760079041207,-500.0,0.00016438,2]
[390541327,1760079041216,-500.0,0.00016438,2]
[390541329,1760079041225,-500.0,0.00016438,2]
[390541330,1760079041235,-500.0,0.00016438,2]
[390541332,1760079041244,-1045.66,0.00016438,2]
[390541335,1760079041253,-500.0,0.00016438,2]
[390541337,1760079041262,-500.0,0.00016438,2]
[390541338,1760079041271,-3117.74,0.00016438,2]
[390541340,1760079041280,-500.0,0.00016438,2]
[390541343,1760079041291,-500.0,0.00016438,2]
[390541345,1760079041300,-500.0,0.00016438,2]
[390541346,1760079041309,-1248.67,0.00016438,2]
[390541349,1760079041318,-500.0,0.00016438,2]
[390541350,1760079041327,-502.06924811,0.00016438,2]
[390541353,1760079041337,-2093.38,0.00016438,2]
[390541354,1760079041346,-500.0,0.00016438,2]
[390541356,1760079041355,-3899.68,0.00016438,2]
[390541358,1760079041364,-500.0,0.00016438,2]
[390541361,1760079041373,-500.0,0.00016438,2]
[390541363,1760079041384,-500.0,0.00016438,2]
[390541365,1760079041393,-504.46235689,0.00016438,2]
[390541366,1760079041402,-500.0,0.00016438,2]
[390541369,1760079041411,-500.0,0.00016438,2]
[390541371,1760079041420,-500.0,0.00016438,2]
[390541372,1760079041429,-500.0,0.00016438,2]
[390541374,1760079041438,-500.0,0.00016438,2]
[390541376,1760079041448,-500.6091402,0.00016438,2]
[390541379,1760079041458,-1284.1,0.00016438,2]
[390541381,1760079041468,-531.89,0.00016438,2]
[390541383,1760079041477,-500.0,0.00016438,2]
[390541385,1760079041486,-752.92,0.00016438,2]
[390541387,1760079041495,-500.0,0.00016438,2]
[390541389,1760079041504,-542.13,0.00016438,2]
[390541391,1760079041514,-500.0,0.00016438,2]
[390541409,1760079041672,-500.0,0.00016438,2]
[390541412,1760079041695,-500.0,0.00016438,2]
[390541414,1760079041704,-500.0,0.00016438,2]
[390541416,1760079041713,-247.21253277,0.00016438,2]
[390541418,1760079041723,-500.0,0.00016438,2]
[390541420,1760079041732,-500.0,0.00016438,2]
[390541422,1760079041741,-500.0,0.00016438,2]
[390541424,1760079041750,-500.0,0.00016438,2]
[390541426,1760079041759,-500.0,0.00016438,2]
[390541428,1760079041768,-180.50174715,0.00016438,2]
[390541430,1760079041778,-247.39966697,0.00016438,2]
[390541432,1760079041787,-500.0,0.00016438,2]
[390541434,1760079041797,-500.0,0.00016438,2]
[390541436,1760079041806,-500.0,0.00016438,2]
[390541438,1760079041815,-810.42,0.00016438,2]
[390541440,1760079041824,-500.0,0.00016438,2]
[390541442,1760079041833,-500.0,0.00016438,2]
[390541444,1760079041843,-500.0,0.00016438,2]
[390541446,1760079041854,-500.0,0.00016438,2]
[390541448,1760079041863,-500.0,0.00016438,2]
[390541451,1760079041872,-500.0,0.00016438,2]
[390541453,1760079041881,-500.0,0.00016438,2]
[390541455,1760079041891,-500.0,0.00016438,2]
[390541457,1760079041901,-500.0,0.00016438,2]
[390541459,1760079041910,-501.25766401,0.00016438,2]
[390541461,1760079041919,-555.28,0.00016438,2]
[390541463,1760079041928,-808.84,0.00016438,2]
[390541465,1760079041937,-501.11226324,0.00016438,2]
[390541467,1760079041946,-500.0,0.00016438,2]
[390541469,1760079041955,-532.77412407,0.00016438,2]
[390541471,1760079041963,-500.0,0.00016438,2]
[390541473,1760079041972,-500.0,0.00016438,2]
[390541475,1760079041982,-503.19599363,0.00016438,2]
[390541476,1760079041995,-500.0,0.00016438,2]
[390541479,1760079042005,-500.0,0.00016438,2]
[390541480,1760079042014,-500.0,0.00016438,2]
[390541483,1760079042023,-500.56236055,0.00016438,2]
[390541485,1760079042032,-500.0,0.00016438,2]
[390541487,1760079042042,-2872.1,0.00016438,2]
[390541489,1760079042051,-501.46008985,0.00016438,2]
[390541491,1760079042061,-500.0,0.00016438,2]
[390541493,1760079042071,-500.0,0.00016438,2]
[390541495,1760079042080,-500.0,0.00016438,2]
[390541497,1760079042090,-824.57,0.00016438,2]
[390541498,1760079042101,-641.43994474,0.00016438,2]
[390541501,1760079042111,-500.0,0.00016438,2]
[390541503,1760079042120,-500.0,0.00016438,2]
[390541504,1760079042130,-500.0,0.00016438,2]
[390541506,1760079042139,-500.0,0.00016438,2]
[390541509,1760079042148,-500.0,0.00016438,2]
[390541511,1760079042158,-501.08569497,0.00016438,2]
[390541513,1760079042167,-501.33157775,0.00016438,2]
[390541515,1760079042176,-500.0,0.00016438,2]
[390541517,1760079042186,-244.73271052,0.00016438,2]
[390541519,1760079042194,-500.0,0.00016438,2]
[390541521,1760079042205,-1080.45,0.00016438,2]
[390541523,1760079042214,-2909.11,0.00016438,2]
[390541525,1760079042223,-500.0,0.00016438,2]
[390541527,1760079042232,-6244.14,0.00016438,2]
[390541529,1760079042241,-6244.14,0.00016438,2]
[390541531,1760079042250,-6244.14,0.00016438,2]
[390541533,1760079042259,-500.0,0.00016438,2]
[390541535,1760079042268,-6244.14,0.00016438,2]
[390541537,1760079042277,-6244.14,0.00016438,2]
[390541539,1760079042286,-6244.14,0.00016438,2]
[390541541,1760079042295,-500.0,0.00016438,2]
[390541544,1760079042305,-6244.14,0.00016438,2]
[390541546,1760079042314,-501.3140315,0.00016438,2]
[390541548,1760079042323,-6244.14,0.00016438,2]
[390541550,1760079042332,-6244.14,0.00016438,2]
[390541552,1760079042342,-6244.14,0.00016438,2]
[390541554,1760079042353,-6244.14,0.00016438,2]
[390541556,1760079042362,-6244.14,0.00016438,2]
[390541558,1760079042372,-6244.14,0.00016438,2]
[390541560,1760079042381,-859.32,0.00016438,2]
[390541563,1760079042390,-6244.14,0.00016438,2]
[390541566,1760079042399,-6244.14,0.00016438,2]
[390541568,1760079042408,-6244.14,0.00016438,2]
[390541570,1760079042417,-500.3844994,0.00016438,2]
[390541572,1760079042426,-500.0,0.00016438,2]
[390541574,1760079042434,-501.3236961,0.00016438,2]
[390541576,1760079042442,-500.4640918,0.00016438,2]
[390541578,1760079042449,-500.63381307,0.00016438,2]
[390541580,1760079042456,-500.0,0.00016438,2]
[390541582,1760079042465,-500.0,0.00016438,2]
[390541584,1760079042473,-502.44828813,0.00016438,2]
[390541586,1760079042482,-369.60936673,0.00016438,2]
[390541589,1760079042490,-500.63790663,0.00016438,2]
[390541591,1760079042499,-37564.6584974,0.00016438,2]
[390541593,1760079042509,-795.1,0.00016438,2]
[390541595,1760079042516,-500.0,0.00016438,2]
[390541597,1760079042523,-2177.95,0.00016438,2]
[390541599,1760079042531,-500.50058322,0.00016438,2]
[390541601,1760079042538,-5850.05,0.00016438,2]
[390541603,1760079042547,-500.0,0.00016438,2]
[390541605,1760079042555,-501.65952057,0.00016438,2]
[390541607,1760079042562,-500.0,0.00016438,2]
[390541609,1760079042570,-1201.21,0.00016438,2]
[390541611,1760079042578,-500.0,0.00016438,2]
[390541613,1760079042587,-500.0,0.00016438,2]
[390541615,1760079042594,-500.0,0.00016438,2]
[390541617,1760079042603,-500.0,0.00016438,2]
[390541619,1760079042613,-503.01189571,0.00016438,2]
[390541621,1760079042622,-751.67,0.00016438,2]
[390541623,1760079042631,-501.79847167,0.00016438,2]
[390541625,1760079042640,-501.00529747,0.00016438,2]
[390541627,1760079042650,-500.0,0.00016438,2]
[390541629,1760079042659,-500.0,0.00016438,2]
[390541631,1760079042668,-500.0,0.00016438,2]
[390541633,1760079042678,-500.0,0.00016438,2]
[390541635,1760079042688,-500.0,0.00016438,2]
[390541637,1760079042697,-152.68237417,0.00016438,2]
[390541639,1760079042707,-500.0,0.00016438,2]
[390541641,1760079042717,-1456.0,0.00016438,2]
[390541643,1760079042727,-1350.69,0.00016438,2]
[390541645,1760079042736,-500.0,0.00016438,2]
[390541647,1760079042746,-501.37353305,0.00016438,2]
[390541649,1760079042756,-501.12408537,0.00016438,2]
[390541651,1760079042766,-500.8268469,0.00016438,2]
[390541653,1760079042775,-500.0,0.00016438,2]
[390541655,1760079042785,-500.0,0.00016438,2]
[390541657,1760079042795,-1011.22,0.00016438,2]
[390541659,1760079042804,-151.0,0.00016438,2]
[390541662,1760079042820,-500.0,0.00016438,2]
[390541664,1760079042829,-691.86,0.00016438,2]
[390541666,1760079042838,-1160.23,0.00016438,2]
[390541667,1760079042847,-500.0,0.00016438,2]
[390541669,1760079042856,-500.0,0.00016438,2]
[390541671,1760079042866,-500.0,0.00016438,2]
[390541673,1760079042875,-500.0,0.00016438,2]
[390541675,1760079042885,-529.02,0.00016438,2]
[390541677,1760079042895,-500.0,0.00016438,2]
[390541679,1760079042904,-500.0,0.00016438,2]
[390541681,1760079042913,-782.42,0.00016438,2]
[390541683,1760079042923,-500.0,0.00016438,2]
[390541685,1760079042932,-1011.01,0.00016438,2]
[390541687,1760079042941,-151.0,0.00016438,2]
[390541689,1760079042951,-2544.55,0.00016438,2]
[390541691,1760079042960,-500.0,0.00016438,2]
[390541693,1760079042969,-500.0,0.00016438,2]
[390541695,1760079042979,-501.35072791,0.00016438,2]
[390541697,1760079042991,-500.0,0.00016438,2]
[390541699,1760079043000,-500.0,0.00016438,2]
[390541701,1760079043009,-500.0,0.00016438,2]
[390541703,1760079043019,-501.77055061,0.00016438,2]
[390541705,1760079043028,-500.0,0.00016438,2]
[390541707,1760079043038,-500.0,0.00016438,2]
[390541709,1760079043047,-500.0,0.00016438,2]
[390541712,1760079043056,-1236.4,0.00016438,2]
[390541715,1760079043069,-500.0,0.00016438,2]
[390541717,1760079043078,-1923.9,0.00016438,2]
[390541719,1760079043087,-500.0,0.00016438,2]
[390541721,1760079043097,-661.1,0.00016438,2]
[390541723,1760079043107,-500.0,0.00016438,2]
[390541725,1760079043116,-618.51,0.00016438,2]
[390541727,1760079043125,-661.5,0.00016438,2]
[390541728,1760079043134,-500.0,0.00016438,2]
[390541730,1760079043143,-500.0,0.00016438,2]
[390541732,1760079043152,-500.0,0.00016438,2]
[390541734,1760079043162,-500.0,0.00016438,2]
[390541736,1760079043171,-598.14865491,0.00016438,2]
[390541738,1760079043180,-698.81,0.00016438,2]
[390541740,1760079043189,-501.12466354,0.00016438,2]
[390541742,1760079043198,-500.0,0.00016438,2]
[390541744,1760079043207,-502.29888454,0.00016438,2]
[390541746,1760079043216,-500.0,0.00016438,2]
[390541748,1760079043225,-501.75442674,0.00016438,2]
[390541750,1760079043234,-500.0,0.00016438,2]
[390541752,1760079043243,-500.0,0.00016438,2]
[390541754,1760079043252,-500.0,0.00016438,2]
[390541755,1760079043262,-500.0,0.00016438,2]
[390541757,1760079043271,-500.0,0.00016438,2]
[390541759,1760079043286,-500.0,0.00016438,2]
[390541761,1760079043295,-500.0,0.00016438,2]
[390541763,1760079043305,-500.0,0.00016438,2]
[390541765,1760079043314,-539.06,0.00016438,2]
[390541767,1760079043324,-500.0,0.00016438,2]
[390541769,1760079043333,-1004.65,0.00016438,2]
[390541771,1760079043342,-500.0,0.00016438,2]
[390541773,1760079043353,-500.0,0.00016438,2]
[390541775,1760079043363,-501.20554568,0.00016438,2]
[390541777,1760079043372,-677.79,0.00016438,2]
[390541779,1760079043381,-560.0,0.00016438,2]
[390541781,1760079043390,-500.0,0.00016438,2]
[390541783,1760079043399,-500.0,0.00016438,2]
[390541785,1760079043408,-500.0,0.00016438,2]
[390541787,1760079043417,-500.0,0.00016438,2]
[390541789,1760079043427,-500.0,0.00016438,2]
[390541791,1760079043437,-791.06,0.00016438,2]
[390541793,1760079043446,-501.90666336,0.00016438,2]
[390541794,1760079043455,-212.07681541,0.00016438,2]
[390541796,1760079043465,-500.0,0.00016438,2]
[390541798,1760079043474,-2000.7,0.00016438,2]
[390541800,1760079043483,-500.0,0.00016438,2]
[390541802,1760079043493,-1577.75,0.00016438,2]
[390541803,1760079043502,-500.0,0.00016438,2]
[390541804,1760079043513,-500.0,0.00016438,2]
[390541805,1760079043523,-1000.0,0.00016438,2]
[390541806,1760079043533,-256.22024761,0.00016438,2]
[390541807,1760079043543,-344.0,0.00016459,2]
[390541808,1760079043553,-344.0,0.00016467,2]
[390541809,1760079043563,-443.82077607,0.00016471,2]
[390541810,1760079043572,-202.9582812,0.00016493,2]
[390541811,1760079043582,-151.0,0.00016493,2]
[390541812,1760079043591,-1456.0,0.00016493,2]
[390541813,1760079043603,-199.63242529,0.00016493,2]
[390541814,1760079043612,-151.0,0.00016493,2]
[390541815,1760079043621,-500.0,0.00016493,2]
[390541816,1760079043633,-6244.14,0.00016517,2]
[390541817,1760079043642,-412.83,0.00016546,2]
[390541818,1760079043652,-151.0,0.00016548,2]
[390541819,1760079043661,-1456.0,0.00016548,2]
[390541820,1760079043670,-198.54520826,0.00016548,2]
[390541822,1760079043680,-500.0,0.00016548,2]
[390541824,1760079043690,-2119.82867136,0.00016571,2]
[390541825,1760079043700,-2608.0,0.00016586,2]
[390541827,1760079043710,-783.1369714,0.000166,2]
[390541829,1760079043719,-391.7808599,0.000166,2]
[390541831,1760079043729,-391.7808599,0.000166,2]
[390541833,1760079043738,-391.7808599,0.000166,2]
[390541835,1760079043748,-391.7808599,0.000166,2]
[390541838,1760079043758,-221.93345763,0.00016602,2]
[390541840,1760079043770,-1456.0,0.00016602,2]
[390541842,1760079043780,-641.14722921,0.00016602,2]
[390541844,1760079043790,-1110.63580215,0.00016612,2]
[390541845,1760079043800,-344.0,0.00016618,2]
[390541847,1760079043810,-3456.76874029,0.00016646,2]
[390541849,1760079043819,-2542.1067192,0.00016646,2]
[390541851,1760079043829,-374.893588,0.00016646,2]
[390541853,1760079043839,-225.0,0.00016651,2]
[390541855,1760079043848,-6244.14,0.00016656,2]
[390541858,1760079043859,-1456.0,0.00016657,2]
[390541860,1760079043869,-300.55715187,0.00016658,3]
[390541862,1760079043879,-5048.0,0.00016686,2]
[390541864,1760079043888,-391.8516513,0.000167,2]
[390541866,1760079043898,-391.8516513,0.000167,2]
[390541868,1760079043908,-391.8516513,0.000167,2]
[390541869,1760079043917,-391.8516513,0.000167,2]
[390541871,1760079043926,-391.8516513,0.000167,2]
[390541873,1760079043935,-780.410617,0.000167,2]
[390541875,1760079043945,-391.7808599,0.000167,2]
[390541877,1760079043954,-398.0105011,0.000167,2]
[390541879,1760079043963,-391.7808599,0.000167,2]
[390541881,1760079043972,-3768.58430464,0.00016705,2]
[390541883,1760079043982,-6244.14,0.0001671,2]
[390541889,1760079044031,-6244.14,0.0001671,2]
[390541891,1760079044040,-6244.14,0.0001671,2]
[390541893,1760079044050,-6244.14,0.0001671,2]
[390541895,1760079044059,-6244.14,0.0001671,2]
[390541897,1760079044069,-6244.20809889,0.0001671,2]
[390541899,1760079044078,-500.0,0.00016712,2]
[390541901,1760079044087,-1456.0,0.00016712,2]
[390541903,1760079044096,-503.05416711,0.00016712,2]
[390541905,1760079044106,-500.0,0.00016712,2]
[390541907,1760079044116,-628.20353952,0.00016712,2]
[390541909,1760079044125,-500.0,0.00016712,2]
[390541911,1760079044134,-500.0,0.00016712,2]
[390541913,1760079044144,-500.0,0.00016712,2]
[390541915,1760079044152,-869.76,0.00016712,2]
[390541917,1760079044161,-683.83,0.00016712,2]
[390541919,1760079044170,-500.0,0.00016712,2]
[390541920,1760079044179,-500.0,0.00016712,2]
[390541923,1760079044188,-500.0,0.00016712,2]
[390541924,1760079044198,-500.0,0.00016712,2]
[390541926,1760079044207,-500.0,0.00016712,2]
[390541929,1760079044216,-500.0,0.00016712,2]
[390541930,1760079044226,-614.53,0.00016712,2]
[390541933,1760079044235,-588.93,0.00016712,2]
[390541935,1760079044244,-500.0,0.00016712,2]
[390541936,1760079044253,-375.81580885,0.00016712,2]
[390541938,1760079044263,-200.0,0.00016712,2]
[390541940,1760079044272,-399.44342891,0.00016712,2]
[390541942,1760079044281,-500.0,0.00016712,2]
[390541944,1760079044291,-500.0,0.00016712,2]
[390541946,1760079044300,-337.15619982,0.00016712,2]
[390541948,1760079044309,-500.0,0.00016712,2]
[390541950,1760079044318,-209.78067756,0.00016712,2]
[390541952,1760079044327,-500.0,0.00016712,2]
[390541955,1760079044337,-500.0,0.00016712,2]
[390541956,1760079044346,-500.0,0.00016712,2]
[390541958,1760079044356,-500.0,0.00016712,2]
[390541960,1760079044365,-501.5660037,0.00016712,2]
[390541962,1760079044374,-591.95,0.00016712,2]
[390541964,1760079044383,-500.0,0.00016712,2]
[390541966,1760079044392,-1113.69,0.00016712,2]
[390541968,1760079044401,-500.0,0.00016712,2]
[390541970,1760079044413,-500.0,0.00016712,2]
[390541972,1760079044422,-501.42469803,0.00016712,2]
[390541974,1760079044431,-500.0,0.00016712,2]
[390541976,1760079044440,-500.0,0.00016712,2]
[390541978,1760079044449,-500.0,0.00016712,2]
[390541980,1760079044458,-500.0,0.00016712,2]
[390541982,1760079044467,-495.21487698,0.00016712,2]
[390541984,1760079044475,-753.46,0.00016712,2]
[390541986,1760079044485,-500.0,0.00016712,2]
[390541988,1760079044494,-500.0,0.00016712,2]
[390541990,1760079044503,-500.0,0.00016712,2]
[390541992,1760079044512,-500.0,0.00016712,2]
[390541994,1760079044521,-500.0,0.00016712,2]
[390541996,1760079044531,-500.0,0.00016712,2]
[390541998,1760079044540,-500.0,0.00016712,2]
[390542000,1760079044549,-232.65951247,0.00016712,2]
[390542002,1760079044558,-500.0,0.00016712,2]
[390542004,1760079044567,-500.0,0.00016712,2]
[390542006,1760079044576,-500.0,0.00016712,2]
[390542008,1760079044585,-445.02304004,0.00016712,2]
[390542010,1760079044595,-500.0,0.00016712,2]
[390542012,1760079044605,-500.0,0.00016712,2]
[390542014,1760079044614,-500.0,0.00016712,2]
[390542016,1760079044623,-500.0,0.00016712,2]
[390542018,1760079044632,-500.0,0.00016712,2]
[390542020,1760079044641,-504.43861345,0.00016712,2]
[390542022,1760079044651,-500.0,0.00016712,2]
[390542024,1760079044660,-500.0,0.00016712,2]
[390542026,1760079044669,-386.17919726,0.00016712,2]
[390542028,1760079044678,-500.0,0.00016712,2]
[390542029,1760079044687,-931.93,0.00016712,2]
[390542031,1760079044696,-500.0,0.00016712,2]
[390542033,1760079044706,-500.0,0.00016712,2]
[390542035,1760079044715,-500.0,0.00016712,2]
[390542037,1760079044724,-500.0,0.00016712,2]
[390542039,1760079044733,-500.0,0.00016712,2]
[390542041,1760079044743,-500.0,0.00016712,2]
[390542043,1760079044752,-500.0,0.00016712,2]
[390542046,1760079044762,-503.29990184,0.00016712,2]
[390542047,1760079044771,-500.0,0.00016712,2]
[390542049,1760079044780,-1071.54,0.00016712,2]
[390542051,1760079044789,-1008.81,0.00016712,2]
[390542053,1760079044798,-500.0,0.00016712,2]
[390542055,1760079044808,-911.91,0.00016712,2]
[390542058,1760079044821,-583.71909316,0.00016712,2]
[390542059,1760079044831,-500.0,0.00016712,2]
[390542062,1760079044840,-504.57924601,0.00016712,2]
[390542063,1760079044850,-500.0,0.00016712,2]
[390542065,1760079044864,-500.0,0.00016712,2]
[390542068,1760079044874,-500.0,0.00016712,2]
[390542070,1760079044884,-500.0,0.00016712,2]
[390542071,1760079044894,-500.0,0.00016712,2]
[390542073,1760079044903,-500.0,0.00016712,2]
[390542075,1760079044912,-500.0,0.00016712,2]
[390542077,1760079044921,-500.0,0.00016712,2]
[390542079,1760079044931,-500.0,0.00016712,2]
[390542081,1760079044940,-500.0,0.00016712,2]
[390542083,1760079044949,-335.28662782,0.00016712,2]
[390542085,1760079044958,-500.0,0.00016712,2]
[390542087,1760079044967,-500.0,0.00016712,2]
[390542089,1760079044976,-500.0,0.00016712,2]
[390542091,1760079044986,-500.0,0.00016712,2]
[390542094,1760079044999,-504.34556787,0.00016712,2]
[390542095,1760079045008,-500.0,0.00016712,2]
[390542097,1760079045017,-500.00000001,0.00016712,2]
[390542099,1760079045026,-1248.6,0.00016712,2]
[390542101,1760079045037,-500.0,0.00016712,2]
[390542103,1760079045046,-500.0,0.00016712,2]
[390542105,1760079045056,-500.0,0.00016712,2]
[390542107,1760079045065,-500.0,0.00016712,2]
[390542110,1760079045075,-970.83,0.00016712,2]
[390542112,1760079045085,-7237.26,0.00016712,2]
[390542114,1760079045094,-500.0,0.00016712,2]
[390542116,1760079045103,-500.0,0.00016712,2]
[390542117,1760079045112,-500.0,0.00016712,2]
[390542119,1760079045121,-500.0,0.00016712,2]
[390542121,1760079045131,-500.0,0.00016712,2]
[390542123,1760079045140,-500.0,0.00016712,2]
[390542125,1760079045149,-500.0,0.00016712,2]
[390542128,1760079045159,-500.0,0.00016712,2]
[390542129,1760079045168,-500.0,0.00016712,2]
[390542131,1760079045177,-500.0,0.00016712,2]
[390542133,1760079045185,-500.0,0.00016712,2]
[390542135,1760079045195,-500.0,0.00016712,2]
[390542137,1760079045204,-500.0,0.00016712,2]
[390542139,1760079045213,-500.0,0.00016712,2]
[390542141,1760079045222,-322.11263561,0.00016712,2]
[390542143,1760079045231,-500.0,0.00016712,2]
[390542145,1760079045240,-502.77583653,0.00016712,2]
[390542147,1760079045249,-500.0,0.00016712,2]
[390542149,1760079045259,-500.0,0.00016712,2]
[390542151,1760079045268,-500.0,0.00016712,2]
[390542154,1760079045278,-500.0,0.00016712,2]
[390542155,1760079045287,-500.0,0.00016712,2]
[390542157,1760079045296,-500.0,0.00016712,2]
[390542160,1760079045306,-500.0,0.00016712,2]
[390542162,1760079045316,-500.0,0.00016712,2]
[390542164,1760079045325,-500.0,0.00016712,2]
[390542165,1760079045335,-500.0,0.00016712,2]
[390542167,1760079045344,-500.0,0.00016712,2]